bitfinex-derivatives/quotes_SOLF0:USTF0_20241216
["timestamp","ask_amount","ask_price","bid_price","bid_amount"]
[1734368506327,15.53717233,218.86,218.75,15.77277233]
[1734368506328,2.2843,218.87,218.75,15.77277233]
[1734368506524,2.52,218.88,218.78,13.25277233]
[1734368507429,4.8042,218.88,218.83,2.2846]
[1734368508722,13.25277233,218.86,218.7,6.0701]
[1734368508933,13.25277233,218.86,218.72,13.25277233]
[1734368509129,2.2848,218.82,218.76,2.2854]
[1734368509427,2.2848,218.82,218.73,2.52]
[1734368509622,2.2848,218.82,218.78,2.2851]
[1734368509822,13.25277233,218.86,218.73,2.52]
[1734368510431,257.2101471,218.88,218.75,13.25277233]
[1734368510725,2.9929,218.89,218.75,13.25277233]
[1734368510726,2.2844,218.86,218.75,13.25277233]
[1734368511128,4.8043,218.87,218.83,2.2846]
[1734368516522,4.8043,218.87,218.78,2.52]
[1734368516523,2.52,218.87,218.78,2.52]
[1734368516826,2.52,218.87,218.76,2.52]
[1734368517131,2.52,218.87,218.75,2.52]
[1734368517727,2.2845,218.86,218.75,2.52]
[1734368518433,2.2845,218.86,218.82,2.2847]
[1734368518623,2.52,218.87,218.75,15.77277233]
[1734368518827,1.4691,218.89,218.86,2.2843]
[1734368519433,254.6901471,218.9,218.87,2.2843]
[1734368519930,2.2839,218.91,218.87,2.2843]
[1734368520131,2.284,218.9,218.87,2.2843]
[1734368520723,254.6901471,218.92,218.8,2.52]
[1734368520927,2.2841,218.89,218.85,2.2845]
[1734368521331,2.2841,218.89,218.8,2.52]
[1734368521332,254.6901471,218.92,218.8,2.52]
[1734368521528,2.284,218.91,218.8,2.52]
[1734368521931,2.284,218.91,218.87,2.2842]
[1734368522125,2.2838,218.92,218.8,2.52]
[1734368522328,13.25277233,218.93,218.81,13.25277233]
[1734368522529,254.6901471,218.94,218.91,2.2838]
[1734368522830,256.9737471,218.94,218.81,13.25277233]
[1734368523033,254.6901471,218.94,218.91,2.2839]
[1734368523230,254.6901471,218.94,218.85,2.52]
[1734368523433,40.55587106,218.95,218.85,2.52]
[1734368523631,40.55587106,218.95,218.91,2.2838]
[1734368524930,38.27237106,218.95,218.92,2.2837]
[1734368525130,267.94291943,218.98,218.85,2.52]
[1734368525428,16.78022935,218.97,218.85,2.52]
[1734368525637,13.25277233,218.98,218.87,13.25277233]
[1734368525835,257.8463471,219.0,218.87,13.25277233]
[1734368526562,260.1293471,219.0,218.95,2.2834]
[1734368526756,17.37307233,219.01,218.9,15.77277233]
[1734368526757,14.85307233,219.01,218.9,15.77277233]
[1734368527061,254.6901471,219.02,218.93,13.25277233]
[1734368527450,2.52,219.05,218.93,13.25277233]
[1734368527451,2.2826,219.04,218.93,13.25277233]
[1734368527657,13.25277233,219.01,218.91,3.1982]
[1734368528259,13.25277233,219.01,218.9,2.52]
[1734368528460,13.25277233,218.98,218.9,2.52]
[1734368529059,2.52,218.99,218.9,2.52]
[1734368529354,2.2827,219.02,218.97,2.2832]
[1734368529547,2.2827,219.02,218.9,2.52]
[1734368529750,2.2827,219.02,218.91,13.25277233]
[1734368530150,2.2829,219.01,218.97,2.2832]
[1734368530355,13.25277233,219.04,218.91,13.25277233]
[1734368531262,2.283,219.0,218.91,13.25277233]
[1734368531762,15.53567233,219.01,218.88,13.25277233]
[1734368531965,13.25277233,219.01,218.89,2.52]
[1734368532161,13.25277233,219.01,218.92,5.36879626]
[1734368532364,13.25277233,219.01,218.96,2.2833]
[1734368532567,13.25277233,219.04,218.92,5.36879626]
[1734368533470,13.25277233,219.04,218.96,2.2833]
[1734368533663,13.25277233,219.01,218.96,2.2833]
[1734368533865,13.25277233,219.01,218.92,5.36879626]
[1734368533866,13.25277233,219.04,218.92,5.36879626]
[1734368534169,13.25277233,219.04,218.98,2.2831]
[1734368535166,13.25277233,219.04,218.99,2.283]
[1734368535362,13.25277233,219.04,218.93,2.52]
[1734368535959,2.2826,219.03,218.99,2.283]
[1734368536160,13.25277233,219.04,218.99,2.283]
[1734368536357,13.25277233,219.04,218.93,2.52]
[1734368536562,15.53537233,219.04,218.93,2.52]
[1734368537659,2.2823,219.06,218.94,13.25277233]
[1734368537870,2.986,219.07,219.02,2.2826]
[1734368537871,5.506,219.07,219.02,2.2826]
[1734368538071,5.506,219.07,218.94,13.25277233]
[1734368538264,2.986,219.07,218.94,13.25277233]
[1734368538967,2.2823,219.06,219.02,2.2827]
[1734368539364,2.986,219.07,218.94,13.25277233]
[1734368539566,1.4982,219.07,218.97,13.25277233]
[1734368539953,1.4982,219.07,218.98,2.52]
[1734368540364,1.4982,219.07,219.05,2.2824]
[1734368540859,2.2819,219.1,219.05,2.2824]
[1734368541744,15.77277233,219.11,219.03,2.2825]
[1734368542039,15.77277233,219.11,218.96,2.52]
[1734368542040,13.25277233,219.05,218.96,2.52]
[1734368542242,1.5686,219.04,218.92,7.88879626]
[1734368542436,13.25277233,219.02,218.92,5.36879626]
[1734368543040,2.283,219.0,218.92,5.36879626]
[1734368543239,3.15,219.03,218.92,5.36879626]
[1734368543448,3.15,219.03,219.0,2.2829]
[1734368543738,1.5686,219.04,218.94,13.25277233]
[1734368543938,1.5686,219.04,218.95,2.52]
[1734368544344,1.5686,219.04,219.01,2.2827]
[1734368545340,1.5686,219.04,218.95,2.52]
[1734368545641,13.25277233,219.05,218.95,2.52]
[1734368545843,13.25277233,219.05,218.92,6.89279626]
[1734368546555,13.25277233,219.05,218.98,2.2831]
[1734368547164,2.2827,219.03,218.98,2.2831]
[1734368547664,13.25277233,219.05,218.99,2.283]
[1734368547858,2.2827,219.03,218.99,2.283]
[1734368548066,2.2827,219.03,218.92,6.89279626]
[1734368548268,13.25277233,219.05,218.92,6.89279626]
[1734368548460,2.2832,218.98,218.85,15.77277233]
[1734368548665,15.77277233,218.99,218.85,15.77277233]
[1734368549556,2.2836,218.95,218.9,2.2839]
[1734368550153,15.77277233,218.99,218.85,13.25277233]
[1734368550351,4.7101,218.98,218.85,13.25277233]
[1734368550944,2.2835,218.95,218.91,2.2839]
[1734368551146,4.7101,218.98,218.85,13.25277233]
[1734368551344,2.2828,219.01,218.88,13.25277233]
[1734368551548,2.52,219.03,218.91,13.25277233]
[1734368551844,2.52,219.03,218.94,13.25277233]
[1734368553046,13.25277233,219.02,218.91,13.25277233]
[1734368553448,2.2828,219.02,218.96,2.2833]
[1734368553651,2.52,219.03,218.91,13.25277233]
[1734368553865,2.52,219.06,218.97,13.25277233]
[1734368554087,4.7027,219.08,219.01,2.2828]
[1734368554088,2.2824,219.05,219.01,2.2828]
[1734368554281,2.2824,219.05,218.97,13.25277233]
[1734368555219,1.49,219.08,218.97,13.25277233]
[1734368555378,260.25213081,219.12,219.0,13.25277233]
[1734368555577,40.54495886,219.1,219.05,2.2824]
[1734368555786,38.26305886,219.1,219.0,15.77277233]
[1734368556676,38.26305886,219.1,219.06,2.2822]
[1734368557084,38.26305886,219.1,219.0,15.77277233]
[1734368557278,38.26305886,219.1,219.0,2.52]
[1734368557485,38.26305886,219.1,219.02,2.2827]
[1734368557886,13.25277233,219.11,219.02,2.2827]
[1734368558988,2.2821,219.08,219.02,2.2827]
[1734368560993,2.2823,219.06,219.01,2.2828]
[1734368561582,4.664,219.09,219.01,2.2828]
[1734368561880,13.25277233,219.08,218.96,2.52]
[1734368562377,13.25277233,219.08,219.0,2.2829]
[1734368562879,13.25277233,219.05,218.96,2.52]
[1734368563069,15.77277233,219.05,218.96,2.52]
[1734368563465,2.2828,219.02,218.97,2.2831]
[1734368563767,15.77277233,219.05,218.92,1.5066]
[1734368563969,15.77277233,219.05,218.93,8.00186054]
[1734368564266,15.77277233,219.05,218.96,2.2833]
[1734368564267,2.2829,219.01,218.96,2.2833]
[1734368564669,13.25277233,219.02,218.91,14.80267233]
[1734368564863,2.2831,218.99,218.9,2.52]
[1734368565070,2.5,219.0,218.89,2.5]
[1734368565467,2.2834,218.96,218.88,5.42099972]
[1734368566363,13.25277233,218.99,218.92,2.2837]
[1734368566563,258.8158471,219.0,218.88,18.67377205]
[1734368566867,258.8158471,219.0,218.95,2.2834]
[1734368567071,2.2831,218.99,218.95,2.2834]
[1734368567772,4.1257,219.0,218.88,18.67377205]
[1734368567960,2.2833,218.97,218.92,2.2837]
[1734368568167,4.1257,219.0,218.92,2.2837]
[1734368568465,4.1257,219.0,218.82,4.6644]
[1734368568466,13.25277233,218.96,218.85,13.25277233]
[1734368568668,2.5,218.95,218.84,2.5]
[1734368568872,2.284,218.91,218.86,2.2844]
[1734368569065,13.25277233,218.93,218.84,5.53925769]
[1734368569365,13.25277233,218.93,218.82,18.81327233]
[1734368569366,13.25277233,218.93,218.82,1.5383]
[1734368569574,13.25277233,218.93,218.79,13.25277233]
[1734368569575,13.25277233,218.93,218.84,2.2845]
[1734368569872,3.016,218.92,218.84,2.2845]
[1734368570066,3.016,218.92,218.8,7.90393081]
[1734368570766,5.2999,218.92,218.86,2.2843]
[1734368570971,5.2999,218.92,218.8,7.90393081]
[1734368571174,2.284,218.9,218.8,7.90393081]
[1734368571673,2.2841,218.89,218.83,2.2846]
[1734368572373,2.2841,218.89,218.84,2.2846]
[1734368573064,2.5,218.9,218.8,5.40393081]
[1734368573263,1.6234,218.91,218.8,5.40393081]
[1734368573870,2.2841,218.89,218.83,2.2847]
[1734368574065,2.5,218.9,218.83,2.2847]
[1734368575067,2.2842,218.88,218.83,2.2847]
[1734368575271,2.5,218.9,218.84,2.2846]
[1734368575769,2.5,218.9,218.8,5.40393081]
[1734368575770,1.6234,218.91,218.87,2.2842]
[1734368576971,2.5,218.94,218.89,2.2841]
[1734368577770,2.5,218.94,218.83,13.25277233]
[1734368578179,13.25277233,218.96,218.89,2.284]
[1734368578180,4.7835,218.95,218.89,2.284]
[1734368578470,4.7835,218.95,218.83,13.25277233]
[1734368578673,4.7835,218.95,218.9,2.2839]
[1734368578873,13.25277233,218.96,218.85,2.5]
[1734368578874,4.7834,218.96,218.85,2.5]
[1734368579266,4.7834,218.96,218.9,2.2839]
[1734368580473,2.2835,218.95,218.9,2.2839]
[1734368581272,2.2835,218.95,218.85,2.5]
[1734368581273,13.25277233,218.93,218.85,2.5]
[1734368581468,13.25277233,218.93,218.8,7.90393081]
[1734368581868,2.2839,218.91,218.8,7.90393081]
[1734368582069,2.5,218.92,218.8,7.90393081]
[1734368582878,2.2843,218.87,218.82,2.2848]
[1734368583175,13.25277233,218.9,218.79,5.40332773]
[1734368583571,2.2843,218.87,218.83,2.2846]
[1734368583773,4.7843,218.87,218.79,5.40332773]
[1734368584173,2.2846,218.84,218.74,4.0536]
[1734368584374,15.75277233,218.87,218.74,4.0536]
[1734368584778,2.2846,218.85,218.78,2.2852]
[1734368584976,15.75277233,218.87,218.74,4.0536]
[1734368585380,15.75277233,218.87,218.8,2.285]
[1734368585878,15.75277233,218.87,218.76,5.60247567]
[1734368586075,2.2845,218.85,218.76,5.60247567]
[1734368586281,13.25277233,218.87,218.76,18.855248]
[1734368586485,2.52,218.88,218.76,18.855248]
[1734368586681,13.25277233,218.9,218.85,2.2844]
[1734368586981,7.3364,218.91,218.79,15.77277233]
[1734368587579,13.25277233,218.9,218.79,15.77277233]
[1734368588378,13.25277233,218.9,218.86,2.2843]
[1734368588587,2.52,218.91,218.79,15.77277233]
[1734368589384,13.25277233,218.93,218.79,15.77277233]
[1734368589582,2.2839,218.91,218.86,2.2843]
[1734368589978,2.2838,218.92,218.88,2.2841]
[1734368590182,15.77277233,218.93,218.82,13.25277233]
[1734368590477,15.77277233,218.93,218.79,15.77277233]
[1734368590685,15.77277233,218.93,218.86,2.2843]
[1734368591279,15.77277233,218.93,218.79,15.77277233]
[1734368591280,2.2839,218.91,218.79,15.77277233]
[1734368591479,15.77277233,218.93,218.8,2.52]
[1734368591480,13.25277233,218.9,218.8,2.52]
[1734368592584,15.77277233,218.93,218.8,2.52]
[1734368592983,13.25277233,218.93,218.8,2.52]
[1734368593287,13.25277233,218.93,218.82,13.25277233]
[1734368593985,13.25277233,218.93,218.89,2.2841]
[1734368593986,15.53657233,218.93,218.89,2.2841]
[1734368594186,13.25277233,218.96,218.82,13.25277233]
[1734368594684,2.2839,218.92,218.82,13.25277233]
[1734368594882,13.25277233,218.88,218.79,2.5]
[1734368595085,13.25277233,218.88,218.84,2.2845]
[1734368595086,15.53697233,218.88,218.84,2.2845]
[1734368595489,2.5,218.91,218.79,15.75277233]
[1734368595685,15.75277233,218.91,218.79,15.75277233]
[1734368596989,2.284,218.9,218.86,2.2843]
[1734368597391,2.5,218.91,218.89,2.2841]
[1734368597593,2.5,218.91,218.82,13.25277233]
[1734368597789,13.25277233,218.94,218.82,13.25277233]
[1734368598085,2.2838,218.93,218.89,2.2841]
[1734368598793,2.2838,218.92,218.82,13.25277233]
[1734368599092,2.2838,218.92,218.88,2.2841]
[1734368599287,13.25277233,218.94,218.88,2.2841]
[1734368599491,2.2838,218.92,218.88,2.2841]
[1734368599791,13.25277233,218.94,218.9,2.284]
[1734368599991,13.25277233,218.94,218.84,2.5]
[1734368601185,13.25277233,218.94,218.9,2.2839]
[1734368601186,15.53637233,218.94,218.9,2.2839]
[1734368602584,15.53637233,218.94,218.91,2.2839]
[1734368602794,13.25277233,218.94,218.91,2.2839]
[1734368606189,8.46806941,218.92,218.91,2.2839]
[1734368606899,8.46806941,218.92,218.89,2.284]
[1734368607190,8.46806941,218.9,218.81,10.96806941]
[1734368607396,8.46806941,218.88,218.81,10.96806941]
[1734368608196,2.2841,218.9,218.81,2.5]
[1734368608392,2.2841,218.9,218.83,2.2846]
[1734368608598,2.2841,218.9,218.81,2.5]
[1734368608901,2.2842,218.89,218.84,2.2846]
[1734368609496,2.2842,218.89,218.85,2.2844]
[1734368611194,254.6901471,218.93,218.81,13.23576771]
[1734368611402,257.1901471,218.94,218.81,13.23576771]
[1734368611897,2.2837,218.93,218.89,2.284]
[1734368612206,2.2837,218.93,218.84,2.5]
[1734368612595,2.5,218.94,218.84,2.5]
[1734368612997,9.25446235,218.94,218.81,13.23576771]
[1734368613201,25.15655321,218.94,218.82,13.23576771]
[1734368613396,254.6901471,218.97,218.8,2.5]
[1734368613397,254.6901471,218.97,218.85,13.23576771]
[1734368613600,510.9586942,219.0,218.88,13.23576771]
[1734368613807,16.79490812,218.99,218.91,13.23576771]
[1734368613997,254.6901471,219.0,218.91,13.23576771]
[1734368614504,13.23576771,218.99,218.88,15.73576771]
[1734368614705,13.23576771,218.99,218.88,13.23576771]
[1734368614903,2.2833,218.97,218.88,15.73576771]
[1734368615404,2.2833,218.97,218.93,2.2836]
[1734368615907,2.2832,218.98,218.93,2.2836]
[1734368616202,254.6901471,219.03,218.94,15.73576771]
[1734368616403,254.6901471,219.11,219.0,13.23576771]
[1734368616913,256.9719471,219.11,219.05,2.2824]
[1734368617800,2.2818,219.11,219.05,2.2824]
[1734368618801,2.2818,219.11,218.91,5.59194531]
[1734368618802,13.23576771,219.07,218.94,13.23576771]
[1734368619010,13.23576771,219.07,218.95,2.5]
[1734368619209,15.73576771,219.07,218.95,2.5]
[1734368619412,2.2825,219.04,218.99,2.283]
[1734368619906,15.73576771,219.07,218.99,2.283]
[1734368620106,15.73576771,219.07,218.95,2.5]
[1734368620607,15.73576771,219.07,219.02,2.2827]
[1734368622013,18.01796771,219.07,219.02,2.2827]
[1734368622313,15.73576771,219.07,218.95,5.5609]
[1734368623011,2.2823,219.06,219.01,2.2828]
[1734368624307,2.5,219.07,219.03,2.2826]
[1734368624508,2.5,219.09,218.97,13.23576771]
[1734368624708,2.5,219.11,219.0,13.23576771]
[1734368624916,270.42591481,219.14,219.0,15.73576771]
[1734368625314,267.92591481,219.14,219.0,15.73576771]
[1734368625511,2.2816,219.13,219.08,2.2821]
[1734368625815,15.73576771,219.14,219.03,13.23576771]
[1734368626410,13.23576771,219.14,219.03,13.23576771]
[1734368626615,15.51726771,219.14,219.09,2.282]
[1734368627209,2.2816,219.13,219.03,13.23576771]
[1734368628414,2.2816,219.13,219.08,2.2821]
[1734368628912,2.2817,219.12,219.07,2.2822]
[1734368629115,2.2817,219.12,219.02,5.42335674]
[1734368629307,13.23576771,219.14,219.02,5.42335674]
[1734368629509,2.2819,219.11,219.06,2.2822]
[1734368631013,2.2817,219.12,219.07,2.2822]
[1734368631215,15.73576771,219.14,219.02,5.42335674]
[1734368631820,2.2819,219.1,219.06,2.2823]
[1734368632019,2.5,219.13,219.06,2.2823]
[1734368632817,2.2819,219.11,219.06,2.2823]
[1734368635026,2.2819,219.11,219.07,2.2822]
[1734368638433,2.2816,219.13,219.08,2.282]
[1734368638723,4.6411,219.18,219.06,15.73576771]
[1734368639124,4.6411,219.18,219.13,2.2815]
[1734368639125,6.9223,219.18,219.13,2.2815]
[1734368639326,4.6411,219.18,219.06,15.73576771]
[1734368639929,2.2813,219.16,219.11,2.2817]
[1734368640226,17.87686771,219.18,219.06,2.5]
[1734368640430,2.2817,219.12,219.08,2.2821]
[1734368640631,2.5,219.15,219.08,2.2821]
[1734368641028,15.73576771,219.15,219.06,2.2823]
[1734368641526,2.2817,219.12,219.01,15.73576771]
[1734368641733,2.2817,219.12,219.07,2.2821]
[1734368642031,2.2816,219.13,219.01,15.73576771]
[1734368642531,2.2821,219.09,218.99,14.73756771]
[1734368642927,2.2821,219.09,219.05,2.2824]
[1734368643133,2.2821,219.09,218.99,14.73756771]
[1734368643539,2.2819,219.1,218.99,14.73756771]
[1734368644226,15.73576771,219.15,219.03,13.23576771]
[1734368644531,2.2818,219.12,219.07,2.2822]
[1734368645230,2.2818,219.12,219.03,15.73576771]
[1734368645231,2.2818,219.12,219.08,2.2821]
[1734368646830,2.2816,219.13,219.09,2.282]
[1734368647031,15.73576771,219.15,219.03,15.73576771]
[1734368647228,2.5,219.15,219.06,13.23576771]
[1734368647728,2.2816,219.14,219.09,2.282]
[1734368648230,15.73576771,219.15,219.09,2.282]
[1734368648734,15.73576771,219.15,219.03,18.77666771]
[1734368648931,15.73576771,219.15,219.03,2.5]
[1734368650236,254.6901471,219.17,219.12,2.2816]
[1734368650237,2.2813,219.16,219.12,2.2816]
[1734368650535,254.6901471,219.17,219.06,13.23576771]
[1734368650731,254.6901471,219.21,219.07,2.5]
[1734368650933,254.6901471,219.21,219.12,13.23576771]
[1734368651233,254.6901471,219.21,219.15,13.23576771]
[1734368651734,256.2747471,219.25,219.15,13.23576771]
[1734368651931,2.2805,219.24,219.18,2.2811]
[1734368652127,256.2747471,219.25,219.12,15.73576771]
[1734368652328,13.23576771,219.24,219.12,15.73576771]
[1734368652534,13.23576771,219.24,219.17,2.2811]
[1734368652731,13.23576771,219.24,219.12,15.73576771]
[1734368652935,13.23576771,219.24,219.12,13.23576771]
[1734368653326,13.23576771,219.24,219.15,2.2814]
[1734368653533,13.23576771,219.21,219.09,13.23576771]
[1734368653733,2.5,219.2,219.08,2.5]
[1734368654430,2.5,219.2,219.11,2.2818]
[1734368654431,2.2813,219.16,219.11,2.2818]
[1734368654634,2.5,219.2,219.06,2.5]
[1734368654635,13.23576771,219.18,219.06,2.5]
[1734368655137,5.5789,219.2,219.06,2.5]
[1734368655437,18.81466771,219.2,219.06,2.5]
[1734368655637,2.2812,219.17,219.12,2.2816]
[1734368655838,18.81466771,219.2,219.06,2.5]
[1734368656833,7.8598,219.2,219.15,2.2814]
[1734368657029,7.8598,219.2,219.04,8.75714075]
[1734368657030,5.5789,219.2,219.11,13.23576771]
[1734368657232,254.6901471,219.21,219.11,15.73576771]
[1734368657440,2.2807,219.22,219.17,2.2811]
[1734368657832,13.23576771,219.23,219.11,15.73576771]
[1734368658939,13.23576771,219.23,219.16,2.2812]
[1734368658940,2.2807,219.22,219.16,2.2812]
[1734368659239,13.23576771,219.23,219.11,2.5]
[1734368659833,13.23576771,219.2,219.08,15.73576771]
[1734368660540,2.2811,219.19,219.13,2.2816]
[1734368660936,4.7811,219.19,219.13,2.2816]
[1734368661132,2.5,219.19,219.08,13.23576771]
[1734368661334,2.5,219.19,219.12,2.2817]
[1734368662239,13.23576771,219.17,219.1,2.2818]
[1734368662441,13.23576771,219.17,219.07,2.5]
[1734368662944,2.2814,219.16,219.1,2.2818]
[1734368663546,2.2814,219.16,219.11,2.2818]
[1734368664444,13.23576771,219.17,219.05,13.23576771]
[1734368664445,2.2815,219.14,219.09,2.2819]
[1734368664943,1.6201,219.16,219.04,8.95446075]
[1734368665148,2.5,219.14,219.07,2.2822]
[1734368665346,15.73576771,219.14,219.07,2.2822]
[1734368665546,2.2821,219.08,219.04,0.19732]
[1734368666451,2.5,219.08,219.04,0.19732]
[1734368667550,4.7822,219.08,219.04,0.19732]
[1734368668649,2.5,219.08,219.04,0.19732]
[1734368669052,2.2824,219.05,219.04,0.19732]
[1734368669350,15.73576771,219.08,219.04,0.19732]
[1734368669548,2.2823,219.07,219.04,0.19732]
[1734368670245,15.73576771,219.08,219.04,0.19732]
[1734368670246,2.2824,219.06,219.04,0.19732]
[1734368670446,15.73576771,219.08,219.04,0.19732]
[1734368670641,17.34576771,219.08,219.04,0.19732]
[1734368670843,2.2824,219.05,219.04,0.19732]
[1734368671048,17.34576771,219.08,218.98,2.2831]
[1734368671348,17.34576771,219.08,218.94,4.0197]
[1734368671544,1.61,219.08,218.96,13.23576771]
[1734368671744,1.61,219.08,218.99,13.23576771]
[1734368671943,1.4867,219.09,218.99,15.73576771]
[1734368672152,2.5,219.1,218.99,15.73576771]
[1734368672341,2.5,219.1,219.02,13.23576771]
[1734368672542,10.80608037,219.15,219.05,13.23576771]
[1734368672747,3.1618,219.15,219.05,13.23576771]
[1734368673647,3.1618,219.15,219.1,2.2819]
[1734368675447,2.5,219.16,219.05,13.23576771]
[1734368675951,13.23576771,219.19,219.14,2.2814]
[1734368676153,2.5,219.2,219.09,2.5]
[1734368676352,13.23576771,219.22,219.09,2.5]
[1734368676555,2.2809,219.2,219.13,2.2815]
[1734368677559,2.281,219.19,219.13,2.2815]
[1734368678057,15.51676771,219.19,219.13,2.2815]
[1734368681055,2.5,219.2,219.09,2.5]
[1734368681259,13.23576771,219.22,219.09,2.5]
[1734368681655,13.23576771,219.22,219.09,3.9885]
[1734368682252,13.23576771,219.22,219.09,9.42984812]
[1734368682458,7.2083,219.23,219.09,9.42984812]
[1734368683148,9.4889,219.23,219.18,2.2811]
[1734368683357,2.2806,219.23,219.11,13.23576771]
[1734368683753,15.73576771,219.24,219.11,13.23576771]
[1734368683754,13.23576771,219.24,219.2,2.2808]
[1734368684858,21.19720827,219.27,219.2,2.2808]
[1734368685554,2.2804,219.25,219.2,2.2808]
[1734368685755,2.48,219.26,219.2,2.2808]
[1734368685965,4.7602,219.26,219.2,2.2808]
[1734368686358,2.48,219.26,219.2,2.2808]
[1734368687463,2.2803,219.25,219.2,2.2808]
[1734368688163,2.48,219.26,219.2,2.2808]
[1734368688164,4.7602,219.26,219.2,2.2808]
[1734368688461,2.48,219.26,219.2,2.2808]
[1734368689458,2.2803,219.25,219.2,2.2808]
[1734368689658,13.23576771,219.24,219.11,1.4645]
[1734368689864,13.23576771,219.21,219.1,4.0623]
[1734368690164,2.281,219.19,219.1,4.0623]
[1734368690360,13.23576771,219.19,219.13,2.2815]
[1734368690557,2.48,219.21,218.97,4.5664]
[1734368690558,13.23576771,219.16,218.97,4.5664]
[1734368690759,2.48,219.15,219.1,2.2818]
[1734368691559,13.23576771,219.16,219.1,2.2818]
[1734368691767,2.48,219.15,219.1,2.2818]
[1734368692565,4.7614,219.15,219.1,2.2818]
[1734368693071,2.2811,219.18,219.12,2.2816]
[1734368693266,15.71576771,219.21,219.08,13.23576771]
[1734368693761,15.71576771,219.21,219.13,2.2815]
[1734368693762,2.281,219.19,219.13,2.2815]
[1734368694869,15.71576771,219.21,219.15,2.2813]
[1734368694870,15.51656771,219.21,219.15,2.2813]
[1734368695167,2.2808,219.21,219.09,4.5207]
[1734368695366,4.7607,219.22,219.16,2.2812]
[1734368695771,2.48,219.22,219.11,13.23576771]
[1734368695972,2.48,219.22,219.19,2.2809]
[1734368696862,2.48,219.22,219.2,2.2808]
[1734368697971,2.48,219.22,219.17,2.2811]
[1734368698168,13.23576771,219.19,219.09,4.5207]
[1734368698369,13.23576771,219.19,219.07,5.49111668]
[1734368699072,13.23576771,219.19,219.08,13.23576771]
[1734368699585,2.281,219.2,219.14,2.2814]
[1734368699769,15.71576771,219.22,219.14,2.2814]
[1734368700069,2.48,219.22,219.14,2.2814]
[1734368700370,15.71576771,219.22,219.11,13.23576771]
[1734368700588,2.48,219.22,219.11,13.23576771]
[1734368700867,13.23576771,219.25,219.14,13.23576771]
[1734368700868,2.48,219.25,219.14,13.23576771]
[1734368701265,2.2805,219.24,219.14,13.23576771]
[1734368701469,15.71576771,219.25,219.12,2.48]
[1734368702070,2.2806,219.23,219.12,2.48]
[1734368702775,2.2807,219.22,219.12,2.48]
[1734368703073,2.2805,219.24,219.19,2.2809]
[1734368703273,15.71576771,219.25,219.12,2.48]
[1734368703464,13.23576771,219.22,219.12,2.48]
[1734368703868,2.2809,219.2,219.16,2.2812]
[1734368704269,13.23576771,219.22,219.16,2.2812]
[1734368704468,13.23576771,219.22,219.08,13.23576771]
[1734368704669,2.48,219.25,219.08,15.71576771]
[1734368704670,13.23576771,219.19,219.08,15.71576771]
[1734368704972,15.71576771,219.19,219.08,15.71576771]
[1734368705175,2.2812,219.18,219.13,2.2815]
[1734368705970,13.23576771,219.16,219.03,4.6518]
[1734368706175,13.23576771,219.13,218.99,13.23576771]
[1734368706475,2.282,219.1,219.04,2.2824]
[1734368706679,2.48,219.12,219.04,2.2824]
[1734368706872,2.2819,219.1,219.04,2.2824]
[1734368707071,2.48,219.12,219.05,2.2823]
[1734368707274,2.48,219.12,219.01,5.46406063]
[1734368707973,257.1701471,219.15,219.02,13.23576771]
[1734368708172,257.1701471,219.15,219.1,2.2819]
[1734368708375,257.1701471,219.15,219.03,2.48]
[1734368708575,259.4516471,219.15,219.03,2.48]
[1734368709074,2.48,219.15,219.03,2.48]
[1734368709274,2.48,219.15,219.03,4.0692]
[1734368709578,2.48,219.15,219.06,2.2823]
[1734368709774,2.48,219.15,219.03,4.0692]
[1734368709975,4.7614,219.15,219.03,4.0692]
[1734368710177,4.7614,219.15,219.1,2.2818]
[1734368710674,2.48,219.15,219.13,2.2815]
[1734368710874,257.8059471,219.17,219.13,2.2815]